bitfinex/quotes_ETHUSD_20250508
["timestamp","ask_amount","ask_price","bid_price","bid_amount"]
[1746720605297,1.55761691,2055.9,2055.8,5.83716575]
[1746720605498,0.8126,2056.8,2056.6,4.86224142]
[1746720605695,1.55761691,2056.7,2056.4,4.86286714]
[1746720605897,1.55761691,2056.7,2056.4,4.86284409]
[1746720606104,0.55,2056.5,2056.3,8.08]
[1746720606288,0.55,2056.5,2055.8,25.616]
[1746720606289,4.86306743,2056.4,2055.8,25.616]
[1746720606603,1.55761691,2056.3,2055.9,0.04863285]
[1746720606917,1.55761691,2056.3,2056.2,7.86334014]
[1746720607118,0.7821,2057.1,2056.5,7.86263068]
[1746720607119,1.55761691,2056.6,2056.5,7.86263068]
[1746720607448,2.33971691,2058.4,2057.2,3.0]
[1746720607576,1.55761691,2058.4,2057.4,3.0]
[1746720607780,4.85837827,2058.3,2057.6,3.0]
[1746720608000,1.55761691,2058.4,2057.7,0.04858973]
[1746720608204,6.41591235,2058.4,2057.7,0.0485855]
[1746720608521,4.85844508,2058.3,2057.7,4.85970647]
[1746720608706,0.8013,2059.0,2057.6,0.7592]
[1746720609013,5.65813436,2059.0,2058.4,4.8579986]
[1746720609188,0.8013,2059.0,2058.4,0.04857724]
[1746720609390,4.85719836,2058.8,2057.9,8.074]
[1746720609581,0.8013,2059.0,2058.2,4.85848356]
[1746720609911,4.85902592,2058.1,2057.7,0.8149]
[1746720610074,4.85865053,2058.2,2057.8,3.0]
[1746720610075,4.85872401,2058.2,2057.8,3.0]
[1746720610419,4.31749275,2058.9,2057.9,0.0485877]
[1746720610722,4.31749275,2058.9,2057.8,3.0]
[1746720610875,4.85756899,2058.7,2058.2,4.85850744]
[1746720611218,0.99757546,2058.8,2058.2,4.8585163]
[1746720611408,4.85706812,2058.9,2058.3,4.85834449]
[1746720611587,4.85732184,2058.8,2058.3,4.85834449]
[1746720611785,5.65818243,2059.0,2058.4,0.04857617]
[1746720611987,4.85767148,2058.6,2057.9,1.18889]
[1746720612289,0.11080455,2058.5,2058.3,4.85822964]
[1746720612518,0.11080455,2058.5,2058.4,4.85814224]
[1746720612722,5.65816038,2059.0,2058.5,4.85787036]
[1746720613026,0.7993,2059.3,2058.6,0.04857196]
[1746720613245,0.7993,2059.3,2058.7,4.8574343]
[1746720613420,4.85580719,2059.4,2058.9,4.85679069]
[1746720613748,4.85795895,2058.5,2058.3,8.071]
[1746720613899,0.55,2059.0,2058.3,8.071]
[1746720614244,0.55,2059.0,2057.7,4.85979365]
[1746720614245,4.85922811,2058.0,2057.6,8.8224]
[1746720614395,4.85879768,2058.2,2057.6,8.071]
[1746720614598,4.85895184,2058.1,2057.6,16.05083518]
[1746720614907,0.55,2058.1,2057.6,11.19095931]
[1746720615093,1.55761691,2058.3,2057.1,8.8224]
[1746720615094,8.87510966,2058.3,2057.1,8.8224]
[1746720615295,1.55761691,2058.3,2057.3,4.8607398]
[1746720615521,4.85801874,2058.5,2057.9,4.85914795]
[1746720615727,4.85853731,2058.3,2057.8,8.07]
[1746720615895,0.55,2058.5,2057.8,8.07]
[1746720616094,3.8076,2058.6,2057.2,4.86082258]
[1746720616095,0.55,2057.8,2057.2,4.86082258]
[1746720616303,0.8327,2058.0,2057.2,3.0]
[1746720616508,5.69180333,2058.0,2057.6,4.85998474]
[1746720616739,5.69182236,2058.0,2057.6,4.85998474]
[1746720616941,0.55,2057.9,2057.1,9.08368338]
[1746720617154,5.69190639,2058.0,2057.2,5.81792512]
[1746720617451,4.86016232,2057.6,2057.2,0.90836834]
[1746720617740,4.86016232,2057.6,2057.1,13.57651081]
[1746720617741,0.55,2057.9,2057.4,4.86039195]
[1746720618043,0.55,2057.5,2057.1,7.964]
[1746720618243,1.55761691,2057.8,2057.0,7.964]
[1746720618404,1.55761691,2057.8,2057.1,3.0]
[1746720618609,1.55761691,2057.8,2057.5,4.86016831]
[1746720618843,1.55761691,2057.8,2057.6,4.85989422]
[1746720619056,0.8278,2058.4,2057.9,4.85912302]
[1746720619341,0.8278,2058.4,2058.0,4.8588979]
[1746720619539,0.8278,2058.4,2058.1,4.85881801]
[1746720619753,0.8278,2058.4,2057.7,4.85978922]
[1746720619754,0.8278,2058.4,2057.7,7.85978138]
[1746720619957,0.8278,2058.4,2058.0,4.8589933]
[1746720620117,0.8278,2058.4,2058.1,4.85869636]
[1746720620448,4.85674882,2059.0,2057.8,1.88227814]
[1746720620449,0.8002,2059.1,2058.5,3.0]
[1746720620614,0.8002,2059.1,2058.8,4.85698105]
[1746720620951,0.09436148,2059.0,2058.9,4.90549355]
[1746720621243,0.09436148,2059.0,2058.9,7.963]
[1746720621444,0.8108,2059.5,2058.9,7.963]
[1746720621648,0.09436148,2059.0,2058.6,4.85767026]
[1746720621807,2.36841691,2059.5,2058.7,1.28186703]
[1746720622011,2.36841691,2059.5,2059.1,4.85637288]
[1746720622012,7.22410202,2059.5,2059.1,4.85637288]
[1746720622243,0.09757524,2059.4,2058.7,1.28186703]
[1746720622415,4.95349675,2059.4,2058.7,6.13922402]
[1746720622749,4.85635751,2059.2,2058.5,7.961]
[1746720622949,4.85625485,2059.2,2058.5,12.81873566]
[1746720623111,0.0965374,2059.1,2058.6,4.8576215]
[1746720623313,0.55,2059.4,2058.5,7.961]
[1746720623532,0.09604747,2059.0,2058.6,0.04857385]
[1746720623734,2.36841691,2059.5,2058.6,0.84952651]
[1746720623946,0.09356055,2058.9,2058.6,5.65852197]
[1746720624149,4.85666122,2059.1,2058.6,5.65852197]
[1746720624358,0.09307043,2058.8,2058.5,7.961]
[1746720624564,4.85767026,2058.6,2058.5,7.961]
[1746720624721,1.3202,2058.4,2057.4,0.8229]
[1746720624929,4.85901149,2058.1,2057.4,9.14250376]
[1746720625128,1.55761691,2058.7,2057.4,9.14250376]
[1746720625129,5.62627512,2059.3,2057.8,0.8229]
[1746720625322,0.7702,2059.3,2058.3,3.0]
[1746720625658,0.55,2059.2,2058.4,3.0]
[1746720625869,0.55,2059.2,2057.5,7.96]
[1746720625870,0.55,2058.7,2057.5,7.96]
[1746720626039,4.85862879,2058.2,2057.9,3.0]
[1746720626231,0.55,2058.2,2057.6,5.69184867]
[1746720626432,0.8086,2058.3,2057.5,7.96]
[1746720626433,4.85923877,2058.0,2057.5,12.8201769]
[1746720626627,0.55,2058.1,2057.2,6.44340617]
[1746720626830,4.85932261,2057.9,2057.2,1.58254167]
[1746720627175,4.86067654,2057.4,2057.1,17.505]
[1746720627335,9.72140587,2057.4,2056.9,12.82150058]
[1746720627666,4.86132308,2057.1,2056.5,4.862456]
[1746720627828,4.86132308,2057.1,2056.3,26.2733]
[1746720627829,5.41137328,2057.1,2056.3,26.2733]
[1746720628027,0.8297,2057.2,2056.8,4.86173862]
[1746720628227,5.69068731,2057.2,2056.8,4.86173862]
[1746720628549,0.8297,2057.2,2056.9,4.86167142]
[1746720628935,0.55,2057.1,2055.9,5.66984735]
[1746720629148,5.41188589,2056.9,2056.2,4.86319262]
[1746720629323,5.41179055,2056.9,2056.4,4.86274624]
[1746720629523,0.55,2057.0,2056.6,4.86224299]
[1746720629763,0.8297,2057.2,2056.7,4.8620634]
[1746720629924,2.32591691,2057.5,2057.0,4.86134175]
[1746720630128,1.55761691,2057.4,2057.2,4.86097394]
[1746720630328,1.55761691,2057.4,2057.0,4.8612819]
[1746720630527,3.0,2057.9,2057.4,4.86050301]
[1746720630528,0.7683,2057.8,2057.4,4.86050301]
[1746720630878,0.7683,2057.8,2057.7,4.85979491]
[1746720631075,1.55761691,2057.9,2057.7,5.3456358]
[1746720631364,1.55761691,2057.9,2057.3,4.86061815]
[1746720631569,1.55761691,2057.9,2057.5,4.86026731]
[1746720631869,1.55761691,2057.9,2057.8,4.85955875]
[1746720632589,0.7683,2058.2,2058.0,4.85889466]
[1746720632779,0.55,2058.1,2057.7,4.85958445]
[1746720633080,0.55,2058.1,2057.9,4.85926844]
[1746720633236,0.55,2058.1,2057.8,4.85941838]
[1746720633438,0.55,2058.1,2057.7,0.97195234]
[1746720633780,0.55,2058.1,2057.6,4.86000295]
[1746720633938,5.40906616,2058.1,2057.5,4.90875753]
[1746720634136,5.40906616,2058.1,2057.5,0.62222347]
[1746720634137,0.55,2058.1,2057.5,0.62222347]
[1746720634486,0.7683,2058.2,2057.5,3.04859772]
[1746720634650,0.7683,2058.2,2057.9,4.85928034]
[1746720634870,0.7683,2058.2,2058.0,4.85897287]
[1746720635173,5.40828029,2058.4,2058.0,4.85902813]
[1746720635174,4.85829637,2058.4,2058.0,4.85902813]
[1746720635385,4.85823423,2058.4,2057.7,0.04858955]
[1746720635547,5.32131691,2058.6,2057.7,6.44664891]
[1746720635747,0.55,2058.5,2057.6,7.961]
[1746720635979,4.85844816,2058.3,2057.9,4.8592873]
[1746720636165,4.85837949,2058.3,2057.9,4.8592873]
[1746720636384,5.40804649,2058.5,2058.1,4.85881571]
[1746720636553,5.40804649,2058.5,2057.9,4.85923143]
[1746720636747,5.40803598,2058.5,2057.9,4.85923056]
[1746720636948,4.85829592,2058.4,2057.9,4.85917059]
[1746720637186,0.55,2058.5,2058.0,4.85905693]
[1746720637389,0.55,2058.5,2057.6,7.961]
[1746720637616,4.85861432,2058.2,2057.6,7.961]
[1746720637793,0.766,2058.1,2057.8,4.85953628]
[1746720638092,0.766,2058.1,2057.7,4.85972443]
[1746720638300,4.85999554,2057.7,2057.3,0.8275]
[1746720638514,4.86001691,2057.7,2057.2,12.82179823]
[1746720638667,4.86001691,2057.7,2057.3,4.8607091]
[1746720638883,5.40993641,2057.7,2057.3,4.86072721]
[1746720639079,4.85967085,2057.8,2057.3,0.04860737]
[1746720639280,4.85967125,2057.8,2057.3,4.86059967]
[1746720639482,1.55761691,2057.9,2057.7,4.85977618]
[1746720639812,1.55761691,2057.9,2057.8,4.85955875]
[1746720640021,1.55761691,2058.4,2058.3,4.85837827]
[1746720640172,0.8322,2058.7,2058.3,4.85837827]
[1746720640713,0.8228,2059.1,2058.3,0.48583783]
[1746720640918,0.8228,2059.1,2057.9,3.7708]
[1746720641114,4.85780492,2058.6,2058.1,4.85867306]
[1746720641416,5.4076805,2058.6,2058.2,4.85855302]
[1746720641709,4.85872912,2058.2,2057.8,12.82039701]
[1746720641911,4.85885081,2058.1,2057.8,7.961]
[1746720642209,4.85885081,2058.1,2057.3,9.99885997]
[1746720642210,0.55,2058.1,2057.3,9.99885997]
[1746720642410,4.85924413,2058.0,2057.6,4.86002422]
[1746720642651,5.4089355,2058.1,2057.7,4.85974045]
[1746720642768,4.85934747,2057.9,2057.4,4.8603672]
[1746720642971,4.85885039,2058.1,2057.3,8.7167]
[1746720643321,10.50947807,2058.2,2057.4,4.86050354]
[1746720643517,4.85887778,2058.1,2057.7,4.85966781]
[1746720643678,0.792,2058.2,2057.6,4.8600311]
[1746720643879,5.65079086,2058.2,2057.5,1.35772035]
[1746720644075,0.792,2058.2,2057.8,4.8594301]
[1746720644290,0.792,2058.2,2058.0,4.85906439]
[1746720644616,4.85849827,2058.3,2057.8,4.85937002]
[1746720644816,4.85829759,2058.4,2057.9,4.85914225]
[1746720645018,2.37181691,2058.5,2057.8,5.34539805]
[1746720645019,4.85854875,2058.3,2057.8,5.34539805]
[1746720645318,4.85898555,2058.1,2057.6,4.85986742]
[1746720645614,4.8591799,2058.0,2057.5,6.21776443]
[1746720645813,4.8591799,2058.0,2057.6,4.85986333]
[1746720645997,4.85898543,2058.1,2057.6,4.85986333]
[1746720646199,4.85859797,2058.3,2057.8,4.85944042]
[1746720646421,4.85859797,2058.3,2057.3,0.7567]
[1746720646422,4.85990311,2057.7,2057.3,4.86072477]
[1746720646615,0.827,2057.9,2057.1,7.877]
[1746720646993,4.85955875,2057.8,2057.2,4.86096434]
[1746720647193,4.86043601,2057.5,2057.1,7.877]
[1746720647405,4.86039024,2057.5,2057.1,7.877]
[1746720647608,4.86039024,2057.5,2057.1,14.09401239]
[1746720648129,0.7537,2057.6,2057.1,7.877]
[1746720648286,0.7537,2057.3,2056.6,7.877]
[1746720648487,0.7537,2057.0,2056.3,0.0486181]
[1746720648725,4.86381322,2056.0,2055.5,10.56995998]
[1746720648927,4.86424488,2055.9,2055.5,5.70507026]
[1746720649131,0.7537,2056.3,2055.6,1.84482882]
[1746720649303,4.8639504,2056.0,2055.6,1.84482882]
[1746720649499,7.17456188,2056.3,2055.8,4.86410136]
[1746720650204,4.86344778,2056.2,2055.7,4.86440974]
[1746720650399,2.31131691,2056.3,2055.9,4.86395307]
[1746720650605,2.31131691,2056.3,2056.0,4.86379682]
[1746720650838,2.31131691,2056.3,2056.0,4.86380745]
[1746720651131,2.31131691,2056.3,2056.0,4.86357938]
[1746720651291,2.31131691,2056.3,2056.1,4.86355428]
[1746720651494,1.55761691,2056.3,2056.2,4.86334014]
[1746720651691,1.55761691,2056.3,2055.9,0.48639531]
[1746720651927,1.55761691,2056.3,2056.0,4.86371415]
[1746720652127,1.55761691,2056.3,2056.1,4.86357431]
[1746720652311,1.55761691,2056.3,2056.0,4.86369836]
[1746720652513,1.55761691,2056.3,2055.7,7.88]
[1746720652829,1.55761691,2056.3,2056.0,4.86362783]
[1746720653127,1.55761691,2056.3,2056.0,4.86371117]
[1746720653292,1.55761691,2056.3,2055.9,4.86386861]
[1746720653625,1.55761691,2056.3,2055.9,4.8639523]
[1746720653825,6.42082181,2056.3,2055.8,4.86411059]
[1746720654016,1.55761691,2056.3,2055.9,4.86397496]
[1746720654218,1.55761691,2056.3,2056.1,4.8635664]
[1746720654395,1.55761691,2056.2,2056.1,4.8635664]
[1746720655036,1.55761691,2056.2,2056.1,5.70230101]
[1746720655728,1.55761691,2056.2,2056.1,8.70230101]
[1746720655927,1.55761691,2056.9,2056.8,4.86192143]
[1746720656092,1.55761691,2056.9,2056.8,12.7915329]
[1746720656295,1.55761691,2056.9,2056.8,12.74292143]
[1746720656493,1.55761691,2056.9,2056.8,13.36961195]
[1746720657300,1.55761691,2056.9,2056.8,12.74292143]
[1746720658007,6.41768576,2057.6,2057.2,4.86083411]
[1746720658331,1.55761691,2057.6,2056.8,12.74290683]
[1746720658635,1.55761691,2057.6,2057.4,4.86039452]
[1746720658994,1.55761691,2057.6,2057.3,4.90922337]
[1746720659229,6.4176564,2057.6,2057.2,4.86085934]
[1746720659428,1.55761691,2057.6,2057.0,3.0]
[1746720659628,1.55761691,2057.6,2057.2,4.86088178]
[1746720659794,1.55761691,2057.6,2056.9,4.86162124]
[1746720659993,1.55761691,2057.6,2057.2,4.86074475]
[1746720660239,1.55761691,2057.6,2057.1,4.86113573]
[1746720660240,6.41788257,2057.6,2057.1,4.86113573]
[1746720660416,6.41788257,2057.6,2056.8,7.881]
[1746720660417,4.8611254,2057.2,2056.8,7.88]
[1746720660616,4.86091307,2057.3,2056.8,12.74189682]
[1746720660818,4.86050533,2057.4,2057.0,4.86132499]
[1746720661019,4.86054112,2057.4,2056.8,9.15418968]
[1746720661221,4.86054112,2057.4,2056.9,4.86156977]
[1746720661450,4.86074012,2057.3,2056.9,4.86156977]
[1746720661654,2.32981691,2057.2,2056.8,7.88]
[1746720661965,4.86129897,2057.1,2056.8,7.88]
[1746720662143,1.55761691,2057.0,2056.1,6.59441551]
[1746720662461,1.55761691,2056.9,2056.3,4.86303116]
[1746720662674,4.86205802,2056.8,2056.5,7.88]
[1746720662866,1.55761691,2056.9,2056.6,4.86219877]
[1746720663221,1.55761691,2056.9,2056.7,4.86210445]
[1746720663526,1.55761691,2056.9,2056.8,4.86192143]
[1746720663832,1.55761691,2056.9,2056.8,6.40221515]
[1746720664045,1.55761691,2056.9,2056.8,6.45082784]
[1746720664358,1.55761691,2056.9,2056.8,9.40221515]
[1746720664862,1.55761691,2056.9,2056.8,6.40221515]
[1746720665163,1.55761691,2056.9,2056.8,4.86192143]
[1746720665661,1.55761691,2056.9,2056.6,4.86228395]
[1746720665954,1.55761691,2056.9,2056.6,4.86235076]
[1746720666156,1.55761691,2056.6,2056.2,4.86319181]
[1746720666360,6.4202626,2056.5,2056.3,7.881]
[1746720666672,7.18798405,2056.4,2056.3,7.881]
[1746720666818,4.86357667,2056.1,2055.5,4.86484873]
[1746720667022,6.42143274,2056.0,2055.6,7.88]
[1746720667324,1.55761691,2056.0,2055.8,4.86416142]
[1746720667523,1.55761691,2056.0,2055.7,4.86443149]
[1746720667722,1.55761691,2056.0,2055.7,4.86432961]
[1746720668357,1.55761691,2056.0,2055.8,4.86413955]
[1746720668677,0.7543,2055.8,2055.4,7.88]
[1746720668983,4.86499635,2055.5,2055.4,7.88]
[1746720669128,4.86499635,2055.5,2055.0,22.37815687]
[1746720669129,4.86545254,2055.4,2055.0,17.512]
[1746720669328,1.55761691,2055.5,2055.1,7.882]
[1746720669532,1.55761691,2055.5,2055.4,4.86523304]
[1746720669733,1.55761691,2055.5,2055.3,4.86536221]
[1746720669938,1.55761691,2055.5,2055.4,7.882]
[1746720670137,6.42261326,2055.5,2055.1,2.61632]
[1746720670357,1.55761691,2055.5,2055.2,4.86560306]
[1746720670527,6.42261607,2055.5,2055.2,7.882]
[1746720670860,1.55761691,2055.5,2055.2,12.74765803]
[1746720671064,4.86594326,2055.1,2054.3,4.92687026]
[1746720671272,1.55761691,2055.0,2054.6,4.86707485]
[1746720671561,1.55761691,2055.0,2054.3,4.92687026]
[1746720671562,1.55761691,2055.0,2054.7,7.882]
[1746720671724,1.55761691,2055.0,2054.7,12.74877386]
[1746720671923,4.86557549,2055.3,2054.7,12.74877386]
[1746720671924,1.55761691,2054.9,2054.8,4.86648724]
[1746720672132,1.55761691,2054.9,2054.2,23.13475212]
[1746720672133,1.3427,2054.8,2053.7,3.7905]
[1746720672351,0.7927,2054.8,2054.2,4.86794634]
[1746720672557,4.86746318,2054.5,2054.1,7.884]
[1746720672777,4.86746318,2054.5,2053.5,17.52]
[1746720672778,1.92296493,2054.5,2053.5,17.52]
[1746720672980,0.774,2054.3,2053.5,17.52]
[1746720673188,0.774,2054.3,2053.6,7.884]
[1746720673189,0.55,2054.0,2053.6,7.884]
[1746720673493,5.41848477,2054.1,2053.6,7.884]
[1746720673646,4.86808767,2054.2,2053.6,7.93269252]
[1746720673847,0.55,2054.2,2053.7,12.75314099]
[1746720674081,0.55,2054.2,2053.7,7.884]
[1746720674394,5.64194809,2054.3,2053.7,7.884]
[1746720674395,1.14489576,2054.3,2053.7,3.0]
[1746720674549,0.55,2054.0,2053.5,0.005241]
[1746720674749,0.55,2054.0,2053.6,4.86936376]
[1746720674944,4.86831215,2054.1,2053.6,7.884]
[1746720675264,5.41832576,2054.1,2053.6,4.86932814]
[1746720675460,0.55,2054.0,2053.6,4.86932814]
[1746720675647,5.64581782,2053.9,2053.5,7.892241]
[1746720675847,0.55,2053.8,2053.5,7.892241]
[1746720676043,0.55,2053.8,2053.5,0.005241]
[1746720676260,4.86929684,2053.7,2053.5,0.005241]
[1746720676507,5.41907221,2053.8,2053.5,0.005241]
[1746720676769,5.41906747,2053.8,2053.5,0.005241]
[1746720677298,5.41949746,2053.6,2053.5,0.005241]
[1746720677596,2.35127591,2053.5,2052.6,8.5762]
[1746720677797,2.35127591,2053.5,2053.2,4.87025653]
[1746720677798,1.55237591,2053.4,2053.2,4.87025653]
[1746720677995,1.55237591,2053.4,2052.9,7.87115787]
[1746720678199,1.55237591,2053.4,2053.3,4.87020893]
[1746720678498,1.55237591,2053.4,2053.2,4.87031487]
[1746720678803,1.55237591,2053.4,2053.3,4.87020893]
[1746720680781,1.55237591,2053.4,2053.1,13.45866018]
[1746720681025,1.55237591,2053.4,2053.1,12.68052886]
[1746720681321,1.55237591,2053.4,2053.3,4.87020893]
[1746720681907,1.55237591,2053.4,2053.3,8.62720893]
[1746720683208,1.55237591,2053.4,2053.3,7.87020893]
[1746720683802,1.55237591,2053.4,2053.3,15.68220893]
[1746720685797,4.86631714,2055.0,2053.6,7.86949746]
[1746720685798,1.55237591,2053.7,2053.6,7.86949746]
[1746720685997,1.55237591,2053.7,2053.6,9.6304072]
[1746720686337,1.55237591,2053.7,2053.6,7.82279746]
[1746720686627,1.55237591,2053.7,2053.6,4.82279746]
[1746720687740,0.55,2053.6,2053.3,17.536]
[1746720687955,5.41962635,2053.6,2053.3,17.536]
[1746720688154,0.55,2053.6,2053.3,17.536]
[1746720688652,4.86997175,2053.4,2053.3,17.536]
[1746720688824,1.55237591,2053.5,2053.3,17.536]
[1746720689010,6.42216098,2053.5,2053.3,17.536]
[1746720689211,1.55237591,2053.5,2053.3,17.536]
[1746720689811,6.42213128,2053.5,2053.3,17.536]
[1746720690521,1.55237591,2053.5,2053.3,22.40620409]
[1746720690730,1.55237591,2053.5,2053.3,17.536]
[1746720690932,6.42222131,2053.5,2053.3,17.536]
[1746720691450,6.42222498,2053.5,2053.3,17.536]
[1746720691652,4.86997175,2053.4,2053.3,15.98362409]
[1746720691948,4.86997175,2053.4,2053.1,7.813]
[1746720692446,4.87028819,2053.3,2053.1,7.813]
[1746720692616,4.87028086,2053.3,2053.1,7.813]
[1746720692816,4.87044613,2053.2,2053.1,7.813]
[1746720693018,6.25184613,2053.2,2053.1,7.813]
[1746720693231,16.30184613,2053.2,2053.1,7.813]
[1746720693644,16.30184613,2053.2,2052.5,22.41101053]
[1746720693645,4.87119161,2052.9,2052.5,22.41101053]
[1746720693846,4.87094375,2053.0,2050.7,4.92687026]
[1746720693847,4.87244129,2052.4,2051.9,4.87352745]
[1746720694049,0.55,2052.6,2051.7,8.5916]
[1746720694365,10.05,2052.5,2051.8,0.04873337]
[1746720694528,14.92224282,2052.5,2052.0,4.8731436]
[1746720694745,5.42248958,2052.4,2051.8,4.87368002]
[1746720695060,0.55,2052.4,2052.0,4.87327444]
[1746720695226,0.55,2052.4,2051.7,7.814]
[1746720695436,0.7825,2052.2,2051.7,7.814]
[1746720695641,0.7825,2052.2,2051.9,4.87339831]
[1746720695839,0.7825,2052.2,2052.0,4.87319502]
[1746720696036,10.6,2052.4,2052.0,4.87319502]
[1746720696037,10.05,2052.4,2052.0,3.0]
[1746720696241,0.55,2052.3,2051.9,7.87339622]
[1746720696451,5.42267988,2052.3,2051.9,4.87351339]
[1746720696669,5.42267988,2052.3,2051.8,7.87366408]
[1746720696670,4.87292636,2052.2,2051.8,7.87366408]
[1746720696832,16.39122079,2052.3,2051.9,4.87343924]
[1746720696833,16.3912366,2052.3,2051.9,4.87343924]
[1746720697246,4.87287106,2052.2,2051.8,4.87365894]
[1746720697434,4.87287106,2052.2,2051.7,7.814]
[1746720697658,4.87287106,2052.2,2051.5,18.2958]
[1746720697659,1.3156,2052.0,2051.5,17.54]
[1746720697863,0.55,2051.8,2051.5,17.54]
[1746720698171,0.55,2051.9,2051.5,22.41430554]
[1746720698337,10.8156,2052.0,2051.5,22.41438184]
[1746720698534,10.8156,2052.0,2051.9,4.87353184]
[1746720698757,10.8156,2052.0,2051.5,17.54]
[1746720698758,10.05,2052.0,2051.5,17.54]
[1746720698960,0.55,2051.9,2051.6,4.87407489]
[1746720699146,0.55,2051.9,2051.5,17.54]
[1746720699348,6.48363781,2051.9,2051.5,17.54]
[1746720699536,0.8286,2051.8,2051.5,17.54]
[1746720699874,14.92341632,2052.0,2051.5,17.54]
[1746720700069,10.05,2052.0,2051.7,4.87385218]
[1746720700269,0.55,2051.9,2051.5,22.41437682]
[1746720700435,0.55,2051.9,2051.5,22.41447073]
[1746720700640,10.05,2052.0,2051.7,4.87400692]
[1746720700868,14.92344635,2052.0,2051.6,4.87409892]
[1746720701033,0.55,2051.9,2051.5,17.54]
[1746720701239,0.55,2051.9,2051.6,4.87403657]
[1746720701462,10.05,2052.0,2051.7,4.8739635]
[1746720701661,10.05,2052.0,2051.7,4.87386016]
[1746720701968,10.05,2052.0,2051.9,4.87353184]
[1746720702134,10.05,2052.7,2052.3,4.87257268]
[1746720702340,4.87163574,2052.7,2052.3,4.87257268]
[1746720702667,10.8626,2052.8,2052.1,7.819]
[1746720702887,11.94886,2052.8,2052.2,4.87265524]
[1746720703051,4.87184316,2052.7,2052.2,4.87267525]
[1746720703372,4.87197345,2052.6,2052.2,4.87267525]
[1746720703669,0.55,2052.5,2052.1,12.69195774]
[1746720703875,0.55,2052.5,2052.1,12.69189121]
[1746720703876,5.42211753,2052.5,2052.1,12.69189121]
[1746720704191,11.94886,2052.8,2051.9,3.0]
[1746720704192,0.55,2052.6,2051.9,3.0]
[1746720704335,10.8626,2052.8,2052.3,4.87244558]
[1746720704532,4.87200728,2052.6,2052.2,4.87266013]
[1746720704772,4.87228336,2052.5,2052.0,12.69216207]
[1746720704974,5.62652938,2052.3,2052.0,7.819]
[1746720705138,0.55,2052.2,2051.4,0.8181]
[1746720705339,4.87353184,2051.9,2051.5,25.359]
[1746720705570,4.87353184,2051.9,2051.5,30.23336116]
[1746720705880,4.87353184,2051.9,2051.5,35.10764453]
[1746720706043,4.87353184,2051.9,2051.5,25.359]
[1746720706243,0.7586,2051.8,2051.5,30.23331574]
[1746720706454,0.7586,2051.8,2051.6,4.87421201]
[1746720706655,0.7586,2051.8,2051.5,30.23329865]
[1746720706855,21.17828181,2052.1,2051.7,4.87388899]
[1746720707056,13.54972818,2052.1,2051.8,4.8736467]
[1746720707255,10.8819,2052.1,2051.9,4.87347063]
[1746720707453,10.8819,2052.1,2051.6,4.87424449]
[1746720707454,15.75510618,2052.1,2051.6,4.87424449]
[1746720707786,15.75510618,2052.1,2051.6,4.87403164]
[1746720707945,10.8819,2052.1,2051.8,4.87358392]
[1746720708141,10.8819,2052.1,2051.9,4.87339064]
[1746720708361,10.8819,2052.1,2051.6,0.04873579]
[1746720708362,10.8819,2052.1,2051.7,4.87382379]
[1746720708554,10.8819,2052.1,2051.8,4.87372809]
[1746720708754,10.05,2052.1,2051.7,4.87386262]
[1746720708978,10.05,2052.1,2051.7,4.87382837]
[1746720709284,0.55,2052.0,2051.6,3.0]
[1746720709475,0.55,2052.0,2050.7,17.553]
[1746720709476,4.87411916,2051.7,2050.7,17.553]
[1746720709786,4.87411916,2051.7,2051.3,4.87484843]
[1746720709787,4.87401749,2051.7,2051.3,4.87484843]
[1746720710256,4.87415942,2051.7,2050.8,7.747]
[1746720710575,0.55,2051.6,2051.3,9.74969968]
[1746720710761,0.55,2051.6,2051.3,4.87479936]
[1746720711264,5.67603256,2051.9,2051.2,0.8143]
[1746720711472,0.8024,2051.9,2051.7,4.87386978]
[1746720711648,10.05,2052.0,2051.8,4.87376937]
[1746720711849,12.02955796,2052.1,2051.8,4.87376937]
[1746720712243,10.05,2052.1,2051.5,7.748]
[1746720712444,10.05,2052.2,2052.1,4.87305686]
[1746720712648,10.05,2052.2,2052.0,4.87315104]
[1746720712955,10.05,2052.2,2051.9,4.87334898]
[1746720713156,10.05,2052.2,2051.7,5.65050379]
[1746720713375,10.05,2052.2,2052.1,4.87305686]
[1746720713781,10.05,2052.2,2051.8,4.87376937]
[1746720714092,10.05,2052.2,2051.7,5.65041]
[1746720714287,10.05,2052.2,2052.1,4.87305686]
[1746720715474,10.05,2052.5,2052.2,4.87279139]
[1746720715677,0.55,2052.5,2052.1,9.7458489]
[1746720715886,0.55,2052.5,2052.0,4.87318009]
[1746720716180,0.55,2052.5,2052.2,4.87278638]
[1746720716669,5.42214509,2052.5,2052.1,4.87303706]
[1746720716870,0.55,2052.5,2052.0,4.87311399]
[1746720717087,11.74097,2052.5,2051.9,7.748]
[1746720717373,0.55,2052.1,2051.9,7.748]
[1746720717592,0.55,2052.3,2052.0,4.87328145]
[1746720717758,8.68735476,2052.4,2052.0,4.87324907]
[1746720717983,4.87287924,2052.2,2051.9,7.748]
[1746720718186,0.55,2052.1,2051.9,7.748]
[1746720718401,3.8149,2052.4,2051.9,7.748]
[1746720718402,5.687362,2052.4,2051.9,7.748]
[1746720718700,5.42273151,2052.3,2051.9,12.62152775]
[1746720718906,5.42282996,2052.2,2051.9,7.748]
[1746720719080,0.55,2052.2,2051.9,7.748]
[1746720719406,5.42290324,2052.2,2051.9,7.748]
[1746720719575,4.8731961,2052.1,2051.9,7.748]
[1746720719773,6.5339964,2052.2,2051.9,7.748]
[1746720720269,4.87310274,2052.1,2051.9,7.748]
[1746720720470,7.17529434,2052.0,2051.6,4.87415476]
[1746720720670,2.302,2052.0,2051.7,4.87391474]
[1746720720908,7.17541357,2052.0,2051.6,4.87423254]
[1746720721111,4.87354609,2051.9,2051.5,7.748]
[1746720721284,4.87354609,2051.9,2051.5,12.62244696]
[1746720721678,0.55,2051.7,2051.5,7.748]
[1746720721907,0.55,2051.7,2050.8,0.8034]
[1746720722083,0.7693,2051.9,2051.0,9.7509461]
[1746720722084,5.42482304,2051.4,2051.0,9.7509461]
[1746720722283,0.55,2051.5,2051.1,4.87542936]
[1746720722478,2.302,2051.6,2051.3,4.87477328]